Cogmind - Beta 13 @@@ ROGUE MODE // 2024.04.08 @ 12:34:16 Player: gabr Result: Destroyed by Y-45 Defender with Beam Rifle Performance ------------- Evolutions (1) 500 Regions Visited (2) 400 Robots Destroyed (67) 335 Value Destroyed (1243) 1243 Prototype IDs (1) 20 Alien Tech Used (0) 0 Bonus (36) 36 TOTAL SCORE: 2534 Bonus ------- High Alert Combat Kills 36 Cogmind --------- Core Integrity 0/400 Matter 98/300 Energy 83/100 System Corruption 5% Temperature Cool (9) Movement Rolling (110) Ox2 Location -9/Materials Parts ------- > --- POWER (1) -------- (None) > --- PROPULSION (2) --- Wheel Wheel > --- UTILITY (4) ------ High-capacity Storage Unit Improved Terrain Scanner Salvage Targeting Computer > --- WEAPON (2) ------- Minigun Minigun > --- INVENTORY (20) --- Ion Engine Ion Engine Light Ion Engine Light Ion Engine Wheel Flight Unit Flight Unit VTOL Module VTOL Module VTOL Module VTOL Module Large Matter Pod (150) Terrain Scanner Terrain Scanner Terrain Scanner Terrain Scanner EM Pulse Gun Small Laser Small Laser Mining Laser Peak State ------------ > --- POWER ------------ Light Ion Engine > --- PROPULSION ------- Wheel Wheel > --- UTILITY ---------- High-capacity Storage Unit Improved Terrain Scanner Improved Terrain Scanner Terrain Scan Processor > --- WEAPON ----------- Advanced Beam Cannon Advanced Beam Cannon > --- INVENTORY -------- Ion Engine Ion Engine Light Ion Engine Light Ion Engine Wheel Wheel Wheel Wheel Wheel Large Matter Pod Sensor Array Terrain Scanner Terrain Scanner Terrain Scanner Terrain Scanner EM Pulse Gun Medium Laser Medium Laser Small Laser Mining Laser [Rating: 20] Favorites ----------- Power Ion Engine Engine Ion Engine Power Core Light Nuclear Core Propulsion Wheel Leg Aluminum Leg Wheel Wheel Hover Unit Hover Unit Utility High-capacity Storage Unit Device Improved Terrain Scanner Storage High-capacity Storage Unit Processor Terrain Scan Processor Weapon Medium Laser Energy Gun Medium Laser Energy Cannon Advanced Beam Cannon Ballistic Gun Autogun Ballistic Cannon Light Cannon Special Weapon Mining Laser Build | -11 -10 -9 ------- Run | Yrd Mat Mat Slots Evolved 2 | . . 2 Power . | . . . Propulsion . | . . . Utility 2 | . . 2 Weapon . | . . . Parts Attached 85 | 17 27 41 Power 12 | 2 3 7 Engine 11 | 2 2 7 Core 1 | . 1 . Reactor . | . . . Propulsion 34 | 5 15 14 Treads . | . . . Leg 6 | 2 2 2 Wheel 21 | 3 9 9 Hover 7 | . 4 3 Flight . | . . . Utility 19 | 3 6 10 Device 13 | 2 3 8 Storage 2 | 1 1 . Processor 4 | . 2 2 Hackware . | . . . Protection . | . . . Artifact . | . . . Weapon 20 | 7 3 10 Energy Gun 9 | 3 2 4 Energy Cannon 2 | . . 2 Ballistic Gun 6 | 3 . 3 Ballistic Cannon 2 | . 1 1 Launcher . | . . . Special Weapon 1 | 1 . . Impact Weapon . | . . . Slashing Weapon . | . . . Piercing Weapon . | . . . Special Melee Weapon . | . . . Unidentified Prototypes 1 | . . 1 Parts Lost 13 | . . 13 Power 3 | . . 3 Propulsion 5 | . . 5 Utility 4 | . . 4 Weapon 1 | . . 1 Highest Loss Streak 4 | . . 4 To Critical Strikes . | . . . Average Slot Usage (%) 97 | . 99 95 Engine 8 | . 7 9 Core 3 | . 6 1 Leg 3 | . . 6 Wheel 17 | . 22 12 Hover 2 | . 4 1 Device 16 | . 10 21 Storage 12 | . 14 11 Processor 6 | . 3 9 Energy Gun 10 | . 14 7 Energy Cannon 4 | . . 8 Ballistic Gun 2 | . . 4 Ballistic Cannon 6 | . 13 1 Naked Turns . | . . . Heaviest Build 55 | 12 51 55 Greatest Support 20 | 20 20 20 Greatest Overweight (x) 17 | . 5 17 Average Overweight (x) 1 | . 1 2 Largest Inventory Capacity 20 | 8 20 20 Average Capacity 18 | 6 19 20 Most Carried 20 | 8 20 20 Average Carried 17 | 5 18 19 Final Capacity 20 | 8 20 20 Final Carried 20 | 8 20 20 Class Distribution -------------------- 54% | Mutant 45% | Scavenger-Mutant Dominant Class ---------------- Mutant | -10/Materials Scavenger-Mutant | -9/Materials Resources | -11 -10 -9 ----------- Run | Yrd Mat Mat Matter Collected 1609 | 383 694 532 Remotely . | . . . Salvage Created 1926 | 231 684 1011 Parts 142 | 19 41 82 Haulers Intercepted 3 | . 2 1 Recyclers Shooed 5 | 1 2 2 Parts Field Recycled . | . . . Retrieved Matter . | . . . Parts Self-Destructed . | . . . Prevented . | . . . Kills | -11 -10 -9 ------- Run | Yrd Mat Mat Combat Hostiles Destroyed 38 | . 14 24 Guns 16 | . 6 10 Cannons 21 | . 8 13 Classes Destroyed 11 | 3 5 3 Worker 6 | 1 2 3 Builder 4 | . 2 2 Tunneler 7 | 6 . 1 Hauler 3 | . 2 1 Recycler 3 | 1 2 . Operator 1 | . . 1 Watcher 5 | . 3 2 Swarmer 14 | . 6 8 Grunt 19 | . 8 11 Brawler 1 | . . 1 Sentry 4 | . . 4 Best Kill Streak 9 | 4 6 9 Combat Bots Only 5 | . 3 5 Max Kills in Single Turn 1 | 1 1 1 Gunslinging . | . . . Exploded . | . . . Melee . | . . . Uniques/NPCs Destroyed . | . . . Combat | -11 -10 -9 -------- Run | Yrd Mat Mat Hostile Shots Fired 249 | . 63 186 Missed 55 | . 18 37 Damage Taken 2210 | . 462 1748 Core 490 | . 81 409 Absorbed by Shields . | . . . Regen/Repaired (Parts) 20 | . . 20 Core Remaining (%) 83 | 100 67 . Volleys Fired 199 | 22 72 105 Largest 2 | 2 2 2 Hottest 136 | 70 85 136 Shots Fired 349 | 35 127 187 Gun 214 | 35 70 109 Cannon 135 | . 57 78 Launcher . | . . . Special . | . . . Kinetic 137 | 13 57 67 Thermal 212 | 22 70 120 Explosive . | . . . Electromagnetic . | . . . Robot Hit Streak 26 | 4 7 26 Robot Miss Streak 9 | 2 3 9 Penetration Max . | . . . Secondary Targets 3 | . . 3 Max Gunslinging Chain 1 | . . 1 Shots Hit Robots 213 | 20 79 114 Core Hits 92 | 11 34 47 Critical Kills . | . . . Critical Parts Destroyed . | . . . Critical Strikes 8 | 1 3 4 Burn 6 | 1 1 4 Blast 2 | . 2 . Melee Attacks . | . . . Impact . | . . . Slashing . | . . . Piercing . | . . . Sneak Attacks . | . . . Combat Hostiles . | . . . Follow-up Attacks . | . . . Damage Inflicted 3480 | 235 1227 2018 Guns 1886 | 235 533 1118 Cannons 1594 | . 694 900 Explosions . | . . . Melee . | . . . Ramming . | . . . Kinetic 1505 | 58 694 753 Thermal 1975 | 177 533 1265 Explosive . | . . . Electromagnetic . | . . . Impact . | . . . Slashing . | . . . Piercing . | . . . Highest Corruption 5 | . . 5 Average Corruption 3 | . . 3 Corruption Purged . | . . . Corruption Blocked . | . . . Effects 21 | . . 21 Message Errors 7 | . . 7 Matter Fused 3 | . . 3 Heat Flow Errors 3 | . . 3 Energy Discharges 3 | . . 3 Data Loss (minor) 1 | . . 1 Data Loss (major) 2 | . . 2 Misfires 1 | . . 1 Weapon Failures 1 | . . 1 Overload Shots . | . . . Overflow Damage 7 | . . 7 Projectiles 7 | . . 7 Explosions . | . . . Melee . | . . . Knockbacks 5 | . 5 . Impact . | . . . Kinetic 5 | . 5 . Secondary . | . . . Self-Inflicted Damage . | . . . Shots . | . . . Rammed . | . . . Targets Rammed . | . . . Kicked . | . . . Crushed . | . . . Highest Temperature 531 | 60 252 531 Average Temperature 107 | 19 73 146 Received Heat Transfer 648 | . 192 456 Effects 21 | . . 21 Shutdowns 6 | . . 6 Energy Bleed 2 | . . 2 Interference 1 | . . 1 Matter Decay 2 | . . 2 Short Circuit 3 | . . 3 Damage (minor) 1 | . . 1 Damage (major) 5 | . . 5 Damage (core) 1 | . . 1 Siege Activations . | . . . Robots Corrupted . | . . . Combat Hostiles . | . . . Parts Fried . | . . . Impact Corruptions . | . . . Robots Melted 1 | . . 1 Combat Hostiles 1 | . . 1 Parts Melted 6 | 1 3 2 Heat Transferred 5207 | 592 1665 2950 Parts Sabotaged . | . . . Parts Stolen . | . . . Parts Stripped . | . . . Power Chain Reactions . | . . . Alert | -11 -10 -9 ------- Run | Yrd Mat Mat Peak Influence 471 | 40 230 471 Initial 68 | . 26 68 Average 176 | 19 114 263 Maximum Alert Level 2 | . 1 2 Low Security (%) 60 | 100 88 29 Level 1 30 | . 11 52 Level 2 8 | . . 18 Level 3 . | . . . Level 4 . | . . . Level 5 . | . . . High Security . | . . . Max Security . | . . . Squads Dispatched 5 | . 2 3 Investigation 3 | . 2 1 Extermination . | . . . Reinforcement 2 | . . 2 Assault . | . . . Garrison . | . . . Intercept . | . . . Searches Triggered . | . . . Construction Impeded 1 | . . 1 Haulers Reinforced . | . . . Active Scanning Responses . | . . . Cargo Convoy Interrupts . | . . . Stealth | -11 -10 -9 --------- Run | Yrd Mat Mat Distress Signals 2 | . 1 1 Communications Jammed . | . . . Distress Signals . | . . . Times Spotted 59 | . 23 36 Peak Tracking Total 5 | . 5 5 Tactical Retreats 1 | . 1 . Traps | -11 -10 -9 ------- Run | Yrd Mat Mat Traps Triggered 3 | . 1 2 Indirectly . | . . . Trap Hack Attempts . | . . . Triggered . | . . . Disarmed . | . . . Reprogrammed . | . . . Reused . | . . . Traps Extracted . | . . . Installed . | . . . Triggered . | . . . Machines | -11 -10 -9 ---------- Run | Yrd Mat Mat Machines Disabled 2 | . . 2 Max in Single Turn 1 | . . 1 Machines Repaired . | . . . Machines Dismantled . | . . . Machines Sabotaged . | . . . Overloaded Fab Kills . | . . . Hacking | -11 -10 -9 --------- Run | Yrd Mat Mat Machines Accessed 7 | . 3 4 Terminals 4 | . 2 2 Fabricators . | . . . Repair Stations 2 | . 1 1 Recycling Units . | . . . Scanalyzers 1 | . . 1 Garrison Access . | . . . Total Hacks 15 | . 6 9 Successful 8 | . 2 6 Failed 7 | . 4 3 Catastrophic 2 | . 1 1 Database Lockouts . | . . . Manual 4 | . 2 2 Terminals 7 | . 3 4 Fabricators . | . . . Repair Stations 5 | . 3 2 Recycling Units . | . . . Scanalyzers 3 | . . 3 Garrison Access . | . . . Terminal Hacks 3 | . 1 2 Branch Access Points 1 | . . 1 Alert Level 1 | . . 1 Zone Layout 1 | . 1 . Fabricator Hacks . | . . . Repair Station Hacks 3 | . 1 2 Scan Component 2 | . 1 1 Repair 1 | . . 1 Recycling Unit Hacks . | . . . Scanalyzer 2 | . . 2 Insert Component 1 | . . 1 Analyze 1 | . . 1 Garrison Access Hacks . | . . . Unauthorized Hacks . | . . . Terminals . | . . . Fabricators . | . . . Repair Stations . | . . . Recycling Units . | . . . Scanalyzers . | . . . Garrison Access . | . . . Data Cores Recovered . | . . . Used . | . . . Hacking Detections 4 | . 2 2 Full Trace Events 3 | . 2 1 Feedback Events . | . . . Feedback Blocked . | . . . Robot Schematics Acquired . | . . . Robots Built . | . . . Authchips . | . . . Time . | . . . Total Robot Build Rating . | . . . Part Schematics Acquired 1 | . . 1 Parts Built . | . . . Authchips . | . . . Time . | . . . Total Part Build Rating . | . . . Parts Repaired 1 | . . 1 Time 38 | . . 38 Parts Recycled . | . . . Recycled Matter . | . . . Retrieved Matter . | . . . Retrieved Components . | . . . Parts Scanalyzed 1 | . . 1 Part Schematics Acquired 1 | . . 1 Parts Damaged . | . . . Bothacking | -11 -10 -9 ------------ Run | Yrd Mat Mat Used RIF Installer . | . . . Robots Hacked . | . . . Non-combat . | . . . Combat . | . . . Robot Hacks Applied . | . . . Relay Couplers Released . | . . . Fabnet Peak Effective % . | . . . Robots Rewired . | . . . Allies Hacked . | . . . Hacks Repelled . | . . . Allies | -11 -10 -9 -------- Run | Yrd Mat Mat Total Allies . | . . . Largest Group . | . . . Highest-Rated Group . | . . . Highest-Rated Ally . | . . . Total Orders . | . . . Ally Attacks . | . . . Total Damage . | . . . Kills . | . . . Allies Corrupted . | . . . Allies Melted . | . . . Intel | -11 -10 -9 ------- Run | Yrd Mat Mat Robot Analysis Total . | . . . Derelict Logs Recovered . | . . . Drone Launches . | . . . Drone Recoveries . | . . . Exploration | -11 -10 -9 ------------- Run | Yrd Mat Mat Turns Passed 2550 | 276 1027 1247 Spaces Moved 1226 | 231 581 414 Core 34 | 33 . 1 Treads . | . . . Legs 101 | 9 1 91 Wheels 1023 | 189 531 303 Hover 68 | . 49 19 Flight . | . . . Fastest Speed 50 | 50 80 110 Average Speed 127 | 77 123 162 Slowest Speed 900 | 120 470 900 Overloaded Moves . | . . . Propulsion Burnouts . | . . . Robots Hopped . | . . . Cave-ins Triggered . | . . . Exploration Rate (%) 32 | 5 63 28 Regions Visited 2 Branch Regions . Pre-discovered Areas . | . . . Known Exits Taken . | . . . Unknown Exits Taken 2 | 1 1 . Scrap Searched . | . . . Spaces Dug . | . . . Terrain Destroyed . | . . . Melee . | . . . Projectile . | . . . AOE . | . . . Terrain Rammed . | . . . Walls Destroyed . | . . . Machines Disabled . | . . . Actions | -11 -10 -9 --------- Run | Yrd Mat Mat Total 1895 | 301 777 817 Wait 264 | . 50 214 Move 1224 | 230 580 414 Hop . | . . . Pick Up 46 | 14 19 13 Fast Attach 43 | 13 11 19 Attach 16 | 2 5 9 Detach 13 | 4 7 2 Swap 26 | 2 11 13 Drop 64 | 14 22 28 Fire 199 | 22 72 105 Melee . | . . . Ram . | . . . Kick . | . . . Crush . | . . . Escape Stasis . | . . . Rewire . | . . . Trap . | . . . Miscellaneous . | . . . Route ------- -11/Scrapyard -10/Materials -9/Materials (discovered 1 exit: Min) History --------- Turn | Location | Event 8 | -11/Scrapyard | Discovered new exit (range 16) 277 | -11/Scrapyard | Entered Materials 309 | -10/Materials | Build established: Mutant 1237 | -10/Materials | Discovered new exit (range 6) 1304 | -10/Materials | Entered another Materials area 1304 | -9/Materials | Evolved 2 slots: Utility x2 1505 | -9/Materials | Lost 3 parts (1p2n) 1740 | -9/Materials | Identified exit to Mines 1832 | -9/Materials | Build established: Scavenger-Mutant 1945 | -9/Materials | Core integrity fell below 50% 1988 | -9/Materials | Lost 4 parts (1p2n1u) 2136 | -9/Materials | Repaired Imp. Terrain Scanner 2273 | -9/Materials | Core integrity fell below 20% 2551 | -9/Materials | Destroyed by Y-45 Defender with Beam Rifle Last Messages --------------- 02392_ B-36 Bruiser suffers critical hit (Burn). 02398_ Acquired 17 matter. 02400_ Acquired 11 matter. 02418_ B-36 Bruiser suffers critical hit (Burn). 02418_ B-36 Bruiser critical meltdown. 02423_ Acquired 56 matter. 02431_ Dropped Wheel. 02439_ M4Y 02478_ Acquired Reaction Control System. 02480_ FADLJUT3W5U0 02484_ Acquired Minigun. 02496_ System corrupted: Component data lost. 02506_ Heat Sink destroyed. 02522_ Reaction Control System destroyed. 02536_ A-02 Transporter destroyed. 02546_ Ion Engine destroyed. 02550_ Acquired Salvage Targeting Computer. Map ----- +----------------------------------------------------+ | ??? ? # ##### ? ?##?#????#????? ?????????????? | | ? # ##############?####? ????????????????? | | ? # # #?##??#??###?? ????????????? | | ?? # # """ ######?#????#??????????????? | | ? # # """"? ##?#??#?? ? ??????#????????? | | # # """"" #####?#?#??"?? # ??????????? | | ? ? # # """""?#########???"????#?????????? | | ? ? # # """ ###?###???""? ???#?????????? | | #######?#=# #?###?##???????????????????? | | ######### #####+###############? ? ?#??????????? | | ##?### ### = ########+####??????????? | | #### ### % *%! ??????? | | + ! = = ![]==##### #?#??#????????? | | " # %[ ####### =%![####?????#??????????? | | "?# ####### ##+###??+#?#?#?????????? | | " # ####### # ?T???????????????? | | + ####### # ????????????????? | | " # #?##?## # ?#?#?? ???????? | | " ########+########??## # """ #???#? ???????? | | "?## """ # """"" # # """"#?????????????? | | ## "R" # ""T"" # #! """""#?#???????????? | | ## " " = # # # """""?#??#??#??????? | | ?# !!= # + =+ """????#??????????? | | ##?# ! =# #!!!# ?????????#???????? | | #?## ! ! # """" #!!%#######?????##?????????? | | #??#[!! # """" # !@##??#??#?????#?????????? | | ?#?#!|= # ???" # !##?#???#?##????????????? | | ?###%######### ?# ######? ???????????????? | | ?#?######?#?###?#####?# [[[##??????????? ?????? | | ##?##?################# [ ##?????????????????? | | ###????##?#??###?###??# ==#? ?????#??????????? | | #??###???###?######???# ==#? ???? ???????????? | | ???###?????#?# ? ? # !#??????????????????? | | ???#??#?###### ????T?# !!#????+?????????????? | | ????????###?#????""?? # Y####### #??????????? | | ?#?#??#?##?### ???"???# Y #??????????? | | ??????#??#?##???? ; ????????? | | ???#?##?#?#?## """ # #??????????? | | ?????#???????#? """ ########### #??????????? | | ????????????????""" ??????????????####?#????????? | | ???????????????? ? ????????????????????????????? | | ???????????????##?##?????????#???????????????????? | | | | | | | | | | | | | | | | | +----------------------------------------------------+ Best States ------------- Heat Dissipation 38 Energy Generation 14 Energy Capacity 250 Matter Stores 300 Matter Capacity 300 Sight Range 18 Robot Scan Range 14 Terrain Scan Range 16 Terrain Scan Density 85 Evasion (%) 50 Item Schematics ----------------- Imp. Terrain Scanner | -9/Materials | Scanalyzed Robot Schematics ------------------ None Fabricated ------------ Nothing Alien Tech Used ----------------- None Achievements -------------- None Challenges ------------ None Game ------ Seed ArmorShrapnelInjector Manual? 0 Play Time 00:22:51 Cumulative 67.3 hours Start 2024.04.08 @ 12:13:04 End 2024.04.08 @ 12:34:16 Sessions 1 Manual Loads 0 Difficulty Rogue Special Mode None Game No. 150 Rogue 150 Adventurer 0 Explorer 0 Win Type - Total 0 Types 0/0/0/0/0/0/0/0/0 Lore% 27 Gallery% 41 Achievement% 31 Wizard Run 0 Options --------- Layout 0 ASCII 0 Keyboard 1 Movement Numpad Keybinds 0 Fullscreen 1 Font 24/Terminus Map View 76x50 Zoom Use 0% Tactical HUD 1 Map Filters NONE Filters NONE Steam 1 RUN: 558e31b9-c1a6-4bf7-86cc-619b1d6cb7e8